bitfinex-derivatives/quotes_BTCF0:USTF0_20250722
["timestamp","ask_amount","ask_price","bid_price","bid_amount"]
[1753174756700,2.75721535,118400.0,118390.0,0.62065869]
[1753174758502,2.71500065,118400.0,118390.0,0.62065869]
[1753174759698,2.08956,118400.0,118390.0,0.62065869]
[1753174759904,0.9277875,118400.0,118390.0,0.90327744]
[1753174760206,0.9277875,118400.0,118390.0,0.62065869]
[1753174760405,2.4277875,118400.0,118390.0,0.62065869]
[1753174760705,2.4510775,118400.0,118390.0,0.62165869]
[1753174761200,2.76382625,118400.0,118390.0,0.62165869]
[1753174764104,2.4812075,118400.0,118390.0,0.62165869]
[1753174764306,2.73369625,118400.0,118390.0,0.62165869]
[1753174764607,2.76382625,118400.0,118390.0,0.62165869]
[1753174769107,2.4812075,118400.0,118390.0,0.62165869]
[1753174769308,2.76382625,118400.0,118390.0,0.62165869]
[1753174770712,2.4812075,118400.0,118390.0,0.62165869]
[1753174771613,2.4812075,118400.0,118390.0,1.26507744]
[1753174771614,0.8494175,118400.0,118390.0,1.26507744]
[1753174772314,0.1690474,118400.0,118390.0,2.22359744]
[1753174772712,0.1690474,118400.0,118390.0,1.85359744]
[1753174772917,0.2608974,118400.0,118390.0,1.57097869]
[1753174773108,0.2608974,118400.0,118390.0,1.87611726]
[1753174773509,0.3384274,118400.0,118390.0,1.87611726]
[1753174774411,0.3617174,118400.0,118390.0,1.87611726]
[1753174774813,0.3617174,118400.0,118390.0,1.59349851]
[1753174775310,0.67446615,118400.0,118390.0,1.00497851]
[1753174775510,1.26294615,118400.0,118390.0,0.57004869]
[1753174775817,0.9803274,118400.0,118390.0,0.57004869]
[1753174776011,1.26294615,118400.0,118390.0,0.57004869]
[1753174777318,1.26294615,118400.0,118390.0,0.62010869]
[1753174777815,1.62374615,118400.0,118390.0,0.22938469]
[1753174778306,1.62374615,118400.0,118390.0,0.39824639]
[1753174778709,1.62374615,118400.0,118390.0,0.44371639]
[1753174779220,1.62374615,118400.0,118390.0,0.52154639]
[1753174779910,1.62374615,118400.0,118390.0,0.25226699]
[1753174780111,1.62374615,118400.0,118390.0,0.44371639]
[1753174780410,1.62374615,118400.0,118390.0,0.52154639]
[1753174781016,1.3411274,118400.0,118390.0,0.52154639]
[1753174781315,1.62374615,118400.0,118390.0,0.52154639]
[1753174781717,1.62374615,118400.0,118390.0,0.54491639]
[1753174783111,1.3411274,118400.0,118390.0,0.52232869]
[1753174783314,1.62374615,118400.0,118390.0,0.61619869]
[1753174783719,1.23281615,118400.0,118390.0,0.61619869]
[1753174783920,0.9501974,118400.0,118390.0,0.61619869]
[1753174784813,0.9501974,118400.0,118390.0,0.89881744]
[1753174785320,0.9501974,118400.0,118390.0,0.61619869]
[1753174785620,0.9803274,118400.0,118390.0,0.61619869]
[1753174786221,0.9501974,118400.0,118390.0,0.61619869]
[1753174786821,0.9803274,118400.0,118390.0,0.61619869]
[1753174788313,0.9269074,118400.0,118390.0,0.61619869]
[1753174788517,1.26232615,118400.0,118390.0,0.61619869]
[1753174790725,0.9797074,118400.0,118390.0,0.61619869]
[1753174791025,1.26232615,118400.0,118390.0,0.61619869]
[1753174792624,1.20952615,118400.0,118390.0,0.61619869]
[1753174792825,0.9269074,118400.0,118390.0,0.61619869]
[1753174793026,1.20952615,118400.0,118390.0,0.61619869]
[1753174793325,1.23219615,118400.0,118390.0,0.64630108]
[1753174794128,1.26232615,118400.0,118390.0,0.63878033]
[1753174795629,1.23219615,118400.0,118390.0,0.63878033]
[1753174795830,0.54351615,118400.0,118390.0,0.63878033]
[1753174796031,0.7572873,118400.0,118390.0,1.28139908]
[1753174796230,0.7572873,118400.0,118390.0,1.28219908]
[1753174796431,0.58844,118400.0,118390.0,1.62971983]
[1753174796634,0.7572873,118400.0,118390.0,1.28971983]
[1753174797535,0.7572873,118400.0,118390.0,1.29071983]
[1753174797733,0.8484973,118400.0,118390.0,1.29071983]
[1753174799132,0.8484973,118400.0,118390.0,1.00810108]
[1753174799534,0.9217973,118400.0,118390.0,1.00810108]
[1753174799734,1.25721605,118400.0,118390.0,1.00810108]
[1753174800340,1.25721605,118400.0,118390.0,0.59724088]
[1753174800541,1.25721605,118400.0,118390.0,0.55581849]
[1753174801137,1.25721605,118400.0,118390.0,0.57839394]
[1753174801340,1.25721605,118400.0,118390.0,0.57839434]
[1753174801637,1.25721605,118400.0,118390.0,0.55581849]
[1753174801829,1.25721605,118400.0,118390.0,0.63995439]
[1753174802232,1.25721605,118400.0,118390.0,0.61737849]
[1753174802430,1.25721605,118400.0,118390.0,0.63995389]
[1753174802838,1.25721605,118400.0,118390.0,0.64005389]
[1753174804343,1.25721605,118400.0,118390.0,0.54600389]
[1753174804544,1.25721605,118400.0,118390.0,0.52263389]
[1753174805053,1.25721605,118400.0,118390.0,0.64375088]
[1753174809653,1.25721605,118400.0,118390.0,0.66634104]
[1753174810556,1.25721605,118400.0,118390.0,0.66534104]
[1753174810757,0.9745973,118400.0,118390.0,0.66534104]
[1753174810958,1.25721605,118400.0,118390.0,0.66534104]
[1753174811349,0.9745973,118400.0,118390.0,0.66534104]
[1753174811550,1.25721605,118400.0,118390.0,0.66534104]
[1753174811958,1.25721605,118400.0,118390.0,0.66334104]
[1753174812153,1.25721605,118400.0,118390.0,0.66434104]
[1753174813055,1.25721605,118400.0,118390.0,0.63423865]
[1753174813756,0.66897605,118400.0,118390.0,0.63423865]
[1753174813959,1.25697605,118400.0,118390.0,0.66434104]
[1753174816361,0.9743573,118400.0,118390.0,0.66434104]
[1753174816559,1.25697605,118400.0,118390.0,0.66434104]
[1753174817361,1.25697605,118400.0,118390.0,0.61164849]
[1753174817560,1.25697605,118400.0,118390.0,0.66437936]
[1753174822861,0.9743573,118400.0,118390.0,0.66437936]
[1753174823061,1.25697605,118400.0,118390.0,0.61164849]
[1753174823265,1.39836266,118400.0,118390.0,0.61164849]
[1753174826667,1.39836266,118400.0,118390.0,0.56192849]
[1753174826870,1.39836266,118400.0,118390.0,0.61384849]
[1753174827569,1.39836266,118400.0,118390.0,0.56192849]
[1753174827768,1.39836266,118400.0,118390.0,0.55008849]
[1753174830374,1.39836266,118400.0,118390.0,0.61340849]
[1753174831466,1.39836266,118400.0,118390.0,0.55008849]
[1753174831777,1.39836266,118400.0,118390.0,0.25136699]
[1753174832069,1.39816266,118400.0,118390.0,0.42022719]
[1753174832466,1.39816266,118400.0,118390.0,0.25136699]
[1753174833169,1.39816266,118400.0,118390.0,0.45035912]
[1753174833367,1.75896266,118400.0,118390.0,0.23602892]
[1753174833968,1.75896266,118400.0,118390.0,0.28441892]
[1753174834371,1.75896266,118400.0,118390.0,0.45327912]
[1753174834670,1.75896266,118400.0,118390.0,0.53100912]
[1753174835667,1.75892266,118400.0,118390.0,0.53100912]
[1753174835869,1.75892266,118400.0,118390.0,0.63570912]
[1753174836070,1.75892266,118400.0,118390.0,0.64710912]
[1753174837277,1.75892266,118400.0,118390.0,0.66972674]
[1753174837776,1.75892266,118400.0,118390.0,0.43754654]
[1753174837980,1.75892266,118400.0,118390.0,0.38476654]
[1753174838473,1.75892266,118400.0,118390.0,0.30703654]
[1753174838668,1.97092534,118400.0,118390.0,0.23602892]
[1753174838870,2.13985334,118400.0,118390.0,0.1983845]
[1753174839077,2.77586138,118400.0,118390.0,0.07666101]
[1753174839272,3.1103244,118400.0,118390.0,0.07666101]
[1753174839477,2.47431636,118400.0,118390.0,0.07666101]
[1753174841274,2.4039124,118400.0,118390.0,0.07666101]
[1753174843174,2.1539124,118400.0,118390.0,0.07666101]
[1753174845281,2.1538324,118400.0,118390.0,0.07666101]
[1753174847180,0.1688605,118390.0,118380.0,0.0001]
[1753174847380,0.81266254,118390.0,118380.0,0.0001]
[1753174847580,0.98160654,118390.0,118380.0,0.0001]
[1753174848177,1.0660767,118390.0,118380.0,0.0001]
[1753174848671,1.0660767,118390.0,118380.0,0.0011]
[1753174849772,0.8971327,118390.0,118380.0,0.0011]
[1753174850374,0.8971327,118390.0,118380.0,0.20589699]
[1753174852478,1.0660767,118390.0,118380.0,0.20589699]
[1753174852675,0.1688748,118380.0,118370.0,0.0001]
[1753174852880,1.40035684,118380.0,118370.0,0.0001]
[1753174853282,1.484827,118380.0,118370.0,0.0001]
[1753174853988,1.76762904,118380.0,118370.0,0.0001]
[1753174854181,1.76762904,118380.0,118370.0,0.0011]
[1753174855080,1.76762904,118380.0,118360.0,0.0001]
[1753174855081,0.1688891,118370.0,118360.0,0.0001]
[1753174855386,0.81269114,118370.0,118360.0,0.1747]
[1753174855784,0.8815487,118370.0,118360.0,0.1747]
[1753174856181,1.16435074,118370.0,118360.0,0.14267]
[1753174856385,1.16435074,118370.0,118360.0,0.14467]
[1753174856786,1.16435074,118370.0,118360.0,0.12224]
[1753174856983,1.16435074,118370.0,118360.0,0.32703699]
[1753174857491,1.16435074,118370.0,118360.0,0.35146699]
[1753174858085,0.8815487,118370.0,118360.0,0.35146699]
[1753174859086,1.16435074,118370.0,118360.0,0.35146699]
[1753174859788,0.8815487,118370.0,118360.0,0.35146699]
[1753174860289,1.24883517,118370.0,118360.0,0.20889699]
[1753174860588,1.24883517,118370.0,118350.0,0.0001]
[1753174860589,0.1689033,118360.0,118350.0,0.0001]
[1753174860788,2.85182738,118360.0,118350.0,1e-07]
[1753174860984,0.13053,118340.0,118330.0,0.0450999]
[1753174861185,1.94360394,118340.0,118330.0,0.0450999]
[1753174861999,1.94360394,118340.0,118330.0,0.02253]
[1753174862198,1.94360394,118340.0,118330.0,0.0226699]
[1753174862399,1.94360394,118340.0,118330.0,0.0001]
[1753174862791,1.94360394,118340.0,118330.0,0.0041]
[1753174862993,1.9518693,118340.0,118330.0,0.0041]
[1753174863388,1.9518693,118340.0,118330.0,0.07714]
[1753174863697,1.9519093,118340.0,118330.0,0.14767]
[1753174864000,1.9539093,118340.0,118330.0,0.14267]
[1753174864401,1.9539093,118340.0,118330.0,0.0001]
[1753174864597,1.9539093,118340.0,118330.0,0.0226699]
[1753174866405,1.9539093,118340.0,118330.0,0.0001]
[1753174867199,2.23671134,118340.0,118330.0,0.0001]
[1753174867399,1.9539093,118340.0,118330.0,0.0001]
[1753174867805,1.9539093,118340.0,118330.0,0.0226699]
[1753174869703,1.9561793,118340.0,118330.0,0.0226699]
[1753174870100,2.23898134,118340.0,118330.0,0.0226699]
[1753174870406,1.9561793,118340.0,118330.0,0.0226699]
[1753174870605,2.23898134,118340.0,118330.0,0.0226699]
[1753174870802,1.9561793,118340.0,118330.0,0.0226699]
[1753174873310,1.9561793,118340.0,118330.0,0.0001]
[1753174874201,2.23898134,118340.0,118330.0,0.0001]
[1753174874407,2.32348719,118340.0,118330.0,1e-07]
[1753174874601,2.32348719,118340.0,118320.0,0.0001]
[1753174874602,0.357236,118330.0,118320.0,0.0001]
[1753174874803,1.28384008,118330.0,118320.0,0.0001]
[1753174875810,1.28384008,118330.0,118320.0,0.0011]
[1753174876707,1.28384008,118330.0,118320.0,0.0236699]
[1753174878013,1.28384008,118330.0,118320.0,0.0011]
[1753174878814,1.28384008,118330.0,118320.0,0.04685]
[1753174879317,1.28384008,118330.0,118320.0,0.0011]
[1753174881814,1.28384008,118330.0,118320.0,0.0236699]
[1753174882013,1.28384008,118330.0,118320.0,0.0215799]
[1753174883411,0.3548499,118320.0,118310.0,0.04519789]
[1753174883616,1.87053398,118320.0,118310.0,0.04519789]
[1753174883813,0.7158499,118320.0,118310.0,0.04519789]
[1753174884017,1.87081398,118320.0,118310.0,0.29157789]
[1753174884817,1.87085398,118320.0,118310.0,0.29157789]
[1753174885316,1.87185398,118320.0,118310.0,0.29157789]
[1753174885912,1.87185398,118320.0,118310.0,0.24638]
[1753174888419,1.87161398,118320.0,118310.0,0.24638]
[1753174888919,1.28245398,118320.0,118310.0,0.24638]
[1753174889119,1.48650194,118320.0,118310.0,0.24638]
[1753174889317,1.40436194,118320.0,118310.0,0.4153541]
[1753174889714,1.40436194,118320.0,118310.0,0.24638]
[1753174889916,1.40436194,118320.0,118310.0,0.4153541]
[1753174890117,1.40436194,118320.0,118310.0,0.24638]
[1753174891020,0.97269194,118320.0,118310.0,0.24638]
[1753174891314,1.87313398,118320.0,118310.0,0.24638]
[1753174897624,1.3075299,118320.0,118310.0,0.24638]
[1753174897825,1.87313398,118320.0,118310.0,0.24638]
[1753174902525,1.87313398,118320.0,118310.0,0.1927]
[1753174902926,1.28245398,118320.0,118310.0,0.04575]
[1753174903236,0.3548641,118310.0,118300.0,0.24658]
[1753174903533,1.56298614,118310.0,118300.0,0.24658]
[1753174903728,0.97170614,118310.0,118300.0,0.24658]
[1753174903925,1.56298614,118310.0,118300.0,0.24658]
[1753174904326,1.58994614,118310.0,118300.0,0.24658]
[1753174907236,1.58994614,118310.0,118300.0,0.0002]
[1753174907946,0.99866614,118310.0,118300.0,0.0002]
[1753174908130,1.58974614,118310.0,118300.0,0.0002]
[1753174908529,0.99866614,118310.0,118300.0,0.14732]
[1753174908732,1.58962614,118310.0,118300.0,0.24172]
[1753174908935,1.59362614,118310.0,118300.0,0.24172]
[1753174910138,1.59562614,118310.0,118300.0,0.24172]
[1753174910842,1.59562614,118310.0,118300.0,0.04853]
[1753174911032,1.59562614,118310.0,118300.0,0.0002]
[1753174911227,1.59562614,118310.0,118300.0,0.04853]
[1753174911537,1.59562614,118310.0,118300.0,0.19141]
[1753174912633,1.59562614,118310.0,118300.0,0.15936]
[1753174912834,1.59562614,118310.0,118300.0,0.14732]
[1753174913332,1.59562614,118310.0,118290.0,0.14712]
[1753174913333,0.3547783,118300.0,118290.0,0.14712]
[1753174913536,0.2760726,118290.0,118280.0,0.1772575]
[1753174913740,1.87279668,118290.0,118280.0,0.1772575]
[1753174914129,1.58999464,118290.0,118280.0,0.1772575]
[1753174914335,1.3071926,118290.0,118280.0,0.1772575]
[1753174914532,1.58999464,118290.0,118280.0,0.1772575]
[1753174914933,1.58999464,118290.0,118280.0,0.2716575]
[1753174915636,1.59099464,118290.0,118280.0,0.2716575]
[1753174916239,0.99939464,118290.0,118280.0,0.2716575]
[1753174916439,1.59203464,118290.0,118280.0,0.2716575]
[1753174917137,1.60046368,118290.0,118280.0,0.2716575]
[1753174918645,1.60046368,118290.0,118280.0,0.2213475]
[1753174918845,1.60046368,118290.0,118280.0,0.1772575]
[1753174919344,1.60046368,118290.0,118280.0,0.14712]
[1753174919540,1.60046368,118290.0,118270.0,0.0301375]
[1753174919541,0.354806,118280.0,118270.0,0.1772575]
[1753174919738,0.99840804,118280.0,118270.0,0.2093075]
[1753174919939,0.99840804,118280.0,118270.0,0.2716575]
[1753174921345,0.715606,118280.0,118270.0,0.2716575]
[1753174921545,0.99840804,118280.0,118270.0,0.4406887]
[1753174921740,0.89272804,118280.0,118270.0,0.4406887]
[1753174921947,0.53192804,118280.0,118270.0,0.4406887]
[1753174922146,0.89272804,118280.0,118270.0,0.4406887]
[1753174922550,0.89272804,118280.0,118270.0,0.2716575]
[1753174922850,0.97144804,118280.0,118270.0,0.2716575]
[1753174923349,0.97144804,118280.0,118270.0,0.24152]
[1753174923945,1.28121008,118280.0,118270.0,0.24152]
[1753174927353,1.28121008,118280.0,118270.0,0.19121]
[1753174928042,0.715606,118280.0,118270.0,0.24152]
[1753174928551,0.99840804,118280.0,118270.0,0.24152]
[1753174928753,0.715606,118280.0,118270.0,0.24152]
[1753174928953,0.99840804,118280.0,118270.0,0.24152]
[1753174930058,1.28121008,118280.0,118270.0,0.19121]
[1753174930353,2.78141008,118280.0,118270.0,0.19141]
[1753174932757,2.215806,118280.0,118270.0,0.19141]
[1753174932953,2.78141008,118280.0,118270.0,0.19141]
[1753174934353,2.78141008,118280.0,118270.0,0.24172]
[1753174935356,2.78141008,118280.0,118270.0,0.19141]
[1753174936648,2.78141008,118280.0,118270.0,0.24172]
[1753174936848,2.49860804,118280.0,118270.0,0.24172]
[1753174937049,2.49860804,118280.0,118270.0,0.19141]
[1753174937259,2.49860804,118280.0,118270.0,0.14732]
[1753174937558,2.78141008,118280.0,118270.0,0.14732]
[1753174941967,2.78141008,118280.0,118270.0,0.16995146]
[1753174943167,2.78141008,118280.0,118270.0,0.07116146]
[1753174943466,2.78141008,118280.0,118270.0,0.09390146]
[1753174943659,2.78141008,118280.0,118270.0,0.16650146]
[1753174945971,2.78141008,118280.0,118270.0,0.19663896]
[1753174947574,2.78141008,118280.0,118270.0,0.1740075]
[1753174947875,2.78141008,118280.0,118270.0,0.19666105]
[1753174948076,2.78141008,118280.0,118270.0,0.1740075]
[1753174949477,3.37341008,118280.0,118270.0,0.1740075]
[1753174950078,3.37341008,118280.0,118270.0,0.19667507]
[1753174950578,3.37341008,118280.0,118270.0,0.1740075]
[1753174953584,3.37341008,118280.0,118270.0,0.16653109]
[1753174954886,3.37341008,118280.0,118270.0,0.09393109]
[1753174955084,3.37341008,118280.0,118270.0,0.02286109]
[1753174956084,3.37341008,118280.0,118270.0,0.07022109]
[1753174956381,3.37341008,118280.0,118270.0,0.02286109]
[1753174957683,3.37341008,118280.0,118270.0,0.0002]
[1753174958084,2.78141008,118280.0,118270.0,0.0002]
[1753174958284,2.78141008,118280.0,118270.0,0.1429]
[1753174958285,3.37273008,118280.0,118270.0,0.1429]
[1753174959482,2.78141008,118280.0,118270.0,0.1429]
[1753174959884,1.56296804,118280.0,118270.0,0.23574]
[1753174960080,0.0002,118280.0,118270.0,1.04837374]
[1753174960286,0.0002,118280.0,118270.0,1.86013083]
[1753174961191,0.1692174,118280.0,118270.0,1.86013083]
[1753174961788,0.1692174,118280.0,118270.0,1.8684364]
[1753174963085,0.1692174,118280.0,118270.0,1.58563436]
[1753174963286,0.1692174,118280.0,118270.0,1.8684364]
[1753174964085,0.53631974,118290.0,118280.0,0.1690174]
[1753174964287,0.1689986,118300.0,118290.0,0.4045431]
[1753174964485,0.4452912,118310.0,118300.0,0.4045288]
[1753174964486,0.2534765,118310.0,118300.0,0.4045288]
[1753174964689,0.2534765,118310.0,118300.0,0.7653288]
[1753174964889,0.2534765,118310.0,118300.0,1.06709159]
[1753174965089,0.2534765,118310.0,118300.0,1.23614759]
[1753174965290,0.2534765,118310.0,118300.0,0.95334555]
[1753174965688,0.2534765,118310.0,118300.0,1.33334555]
[1753174966290,0.2534765,118310.0,118300.0,0.95334555]
[1753174967189,0.53627854,118310.0,118300.0,0.95334555]
[1753174968789,0.28280204,118310.0,118300.0,0.95334555]
[1753174969792,0.87480204,118320.0,118310.0,0.4090645]
[1753174969997,1.52431491,118330.0,118320.0,0.3859702]
[1753174970194,1.52431491,118330.0,118320.0,0.4090502]
[1753174970392,1.11288152,118330.0,118320.0,0.4090502]
[1753174971300,0.52100152,118330.0,118320.0,0.4090502]
[1753174971500,1.19248152,118330.0,118320.0,0.4090502]
[1753174972198,0.90967948,118330.0,118320.0,0.4090502]
[1753174972398,1.19248152,118330.0,118320.0,0.4090502]
[1753174973196,1.11280152,118330.0,118320.0,0.4090502]
[1753174973396,0.5918,118330.0,118320.0,0.7790502]
[1753174973600,1.23592204,118340.0,118330.0,0.4090359]
[1753174973802,0.87512204,118340.0,118330.0,0.7698359]
[1753174974002,0.59232,118340.0,118330.0,0.7698359]
[1753174974203,1.04405364,118340.0,118330.0,0.7698359]
[1753174974403,0.7612516,118340.0,118330.0,0.7698359]
[1753174974704,0.7622516,118340.0,118330.0,0.7698359]
[1753174974899,0.59332,118340.0,118330.0,0.7698359]
[1753174976012,0.59332,118340.0,118330.0,1.05263794]
[1753174976303,0.001,118340.0,118330.0,0.7698359]
[1753174976906,0.1699316,118340.0,118330.0,0.7698359]
[1753174977106,1.19780364,118340.0,118330.0,0.7698359]
[1753174977307,1.58556364,118340.0,118330.0,0.4090359]
[1753174977906,1.22476364,118340.0,118330.0,0.4090359]
[1753174981208,1.58556364,118340.0,118330.0,0.15819]
[1753174981412,1.58576364,118340.0,118330.0,0.2390259]
[1753174981813,1.58576364,118340.0,118330.0,0.3604159]
[1753174982013,1.58576364,118340.0,118330.0,0.4090359]
[1753174983012,1.58520364,118340.0,118330.0,0.4090359]
[1753174985715,0.63276364,118340.0,118330.0,0.4090359]
[1753174986014,1.58448364,118340.0,118330.0,0.4090359]
[1753174986211,1.22368364,118340.0,118330.0,0.4090359]
[1753174986612,1.58448364,118340.0,118330.0,0.4090359]
[1753174987916,1.58448364,118340.0,118330.0,0.24009]
[1753174988118,1.58448364,118340.0,118330.0,0.4090359]
[1753174989116,1.58448364,118340.0,118330.0,0.24009]
[1753174989316,0.7107616,118340.0,118330.0,0.4090359]
[1753174989518,1.22344364,118340.0,118330.0,0.7698359]
[1753174989717,1.19648364,118340.0,118330.0,0.4090359]
[1753174990220,0.60580364,118340.0,118330.0,0.4090359]
[1753174990523,0.7608916,118340.0,118330.0,0.4090359]
[1753174991416,0.8405716,118340.0,118330.0,0.4090359]
[1753174991617,1.19656364,118340.0,118330.0,0.4090359]
[1753174992418,1.12337364,118340.0,118330.0,0.4090359]
[1753174993720,1.19656364,118340.0,118330.0,0.4090359]
[1753174993920,1.22352364,118340.0,118330.0,0.4090359]
[1753174995818,0.9407216,118340.0,118330.0,0.4090359]
[1753174996121,1.22352364,118340.0,118330.0,0.4090359]
[1753174996713,0.9407216,118340.0,118330.0,0.4090359]
[1753174996919,1.22352364,118340.0,118330.0,0.4090359]
[1753174998319,1.19656364,118340.0,118330.0,0.4090359]
[1753174998718,1.12337364,118340.0,118330.0,0.4090359]
[1753174999116,1.19369364,118340.0,118330.0,0.4090359]
[1753174999312,1.58145364,118340.0,118330.0,0.3604162]
[1753175001923,1.58145364,118340.0,118330.0,0.4117762]
[1753175002123,1.22065364,118340.0,118330.0,0.4117762]
[1753175002323,0.9378516,118340.0,118330.0,0.4117762]
[1753175002524,1.22065364,118340.0,118330.0,0.4117762]
[1753175003325,1.58145364,118340.0,118330.0,0.4117762]
[1753175003524,1.22065364,118340.0,118330.0,0.4117762]
[1753175003725,1.58145364,118340.0,118330.0,0.4117762]
[1753175004121,1.22065364,118340.0,118330.0,0.4117762]
[1753175004317,1.2986516,118340.0,118330.0,0.4117762]
[1753175004625,1.58145364,118340.0,118330.0,0.4117762]
[1753175006127,1.58145364,118340.0,118330.0,0.43424555]
[1753175007625,1.22065364,118340.0,118330.0,0.4117762]
[1753175011430,1.22065364,118340.0,118330.0,0.3604162]
[1753175011632,1.58145364,118340.0,118330.0,0.3161162]
[1753175015327,1.22065364,118340.0,118330.0,0.4107662]
[1753175015534,1.58145364,118340.0,118330.0,0.4107662]
[1753175016234,1.22065364,118340.0,118330.0,0.4107662]
[1753175017739,1.22065364,118340.0,118330.0,0.43335544]
[1753175019031,0.62989364,118340.0,118330.0,0.43335544]
[1753175019228,1.22113364,118340.0,118330.0,0.43335544]
[1753175020839,0.9383316,118340.0,118330.0,0.43335544]
[1753175021039,1.22113364,118340.0,118330.0,0.43335544]
[1753175021846,1.58193364,118340.0,118330.0,0.26440924]
[1753175022033,1.58193364,118340.0,118330.0,0.21304924]
[1753175022239,1.58193364,118340.0,118330.0,0.18106924]
[1753175022645,1.58193364,118340.0,118330.0,0.16975924]
[1753175022840,0.1689462,118330.0,118320.0,0.20641674]
[1753175023144,0.99323824,118330.0,118320.0,0.0301375]
[1753175023542,1.27604028,118330.0,118320.0,0.02260123]
[1753175023747,0.3009905,118320.0,118310.0,0.0301375]
[1753175024043,1.81883458,118320.0,118310.0,0.0301375]
[1753175024245,1.81883458,118320.0,118310.0,0.0792375]
[1753175025553,1.81883458,118320.0,118310.0,0.2712024]
[1753175025754,1.53603254,118320.0,118310.0,0.3445024]
[1753175026052,1.53603254,118320.0,118310.0,0.3455024]
[1753175026453,1.53603254,118320.0,118310.0,0.1765275]
[1753175026954,1.53703254,118320.0,118310.0,0.14639]
[1753175027754,1.54003254,118320.0,118310.0,0.14539]
[1753175032356,1.82283458,118320.0,118310.0,0.14539]
[1753175032560,1.82283458,118320.0,118310.0,0.07209]
[1753175038161,1.82283458,118320.0,118310.0,0.0491]
[1753175038465,0.2988247,118310.0,118300.0,0.0712]
[1753175038666,0.94262674,118310.0,118300.0,0.04929]
[1753175038960,0.298839,118300.0,118290.0,0.1447]
[1753175039260,1.53240104,118300.0,118290.0,0.1447]
[1753175039657,1.52968585,118300.0,118290.0,0.09541]
[1753175039858,1.53404585,118300.0,118290.0,0.1447]
[1753175041160,1.53404585,118300.0,118290.0,0.0714]
[1753175041657,0.30765381,118300.0,118290.0,0.4050833]
[1753175041852,0.64004,118300.0,118290.0,0.7658833]
[1753175042057,0.809029,118300.0,118290.0,0.7658833]
[1753175042362,0.809029,118300.0,118290.0,0.4050833]
[1753175042363,0.810029,118300.0,118290.0,0.4050833]
[1753175042552,1.09283104,118300.0,118290.0,0.4050833]
[1753175042749,1.52187104,118300.0,118290.0,0.4050833]
[1753175042954,1.52923104,118300.0,118290.0,0.1447]
[1753175043159,1.52923104,118300.0,118290.0,0.4050833]
[1753175044757,1.52723104,118300.0,118290.0,0.4050833]
[1753175046263,1.52723104,118300.0,118290.0,0.23608]
[1753175046464,1.52723104,118300.0,118290.0,0.1891]
[1753175046661,1.52723104,118300.0,118290.0,0.0002]
[1753175047357,0.2983476,118280.0,118270.0,0.3135319]
[1753175047556,1.53270964,118280.0,118270.0,0.3135319]
[1753175047754,1.53270964,118280.0,118270.0,0.4049119]
[1753175048563,1.53270964,118280.0,118270.0,0.4059119]
[1753175048953,0.94194964,118280.0,118270.0,0.4059119]
[1753175049159,1.31764572,118280.0,118270.0,0.4059119]
[1753175049459,1.60044776,118280.0,118270.0,0.4059119]
[1753175050161,1.60044776,118280.0,118270.0,0.4069119]
[1753175050763,1.60044776,118280.0,118270.0,0.23788]
[1753175051069,1.60044776,118280.0,118270.0,0.4069119]
[1753175051467,1.60044776,118280.0,118270.0,0.0732]
[1753175051770,2.2440498,118280.0,118270.0,0.05129]
[1753175053768,2.2440498,118280.0,118270.0,0.0732]
[1753175055260,2.2440498,118280.0,118270.0,0.05129]
[1753175057064,2.2440498,118280.0,118270.0,0.002]
[1753175057670,2.2440498,118280.0,118270.0,0.03208214]
[1753175058064,2.2440498,118280.0,118270.0,0.08182214]
[1753175058772,2.2440498,118280.0,118270.0,0.05174]
[1753175059075,2.2440498,118280.0,118270.0,0.07265]
[1753175059372,0.72696572,118280.0,118270.0,0.4005115]
[1753175059569,1.59584776,118280.0,118270.0,0.4005115]
[1753175060570,1.31304572,118280.0,118270.0,0.4005115]
[1753175060770,1.59584776,118280.0,118270.0,0.4005115]
[1753175061070,1.60000776,118280.0,118270.0,0.23148]
[1753175061971,1.60000776,118280.0,118270.0,0.4005115]
[1753175062572,1.31720572,118280.0,118270.0,0.4005115]
[1753175062772,1.60000776,118280.0,118270.0,0.23148]
[1753175063774,2.2436098,118280.0,118270.0,0.002]
[1753175063975,2.2438098,118280.0,118270.0,0.0022]
[1753175065874,2.2438098,118280.0,118270.0,0.05194]
[1753175066776,2.2438098,118280.0,118270.0,0.0022]
[1753175069074,1.67820572,118280.0,118270.0,0.0022]
[1753175069281,2.2438098,118280.0,118270.0,0.0022]
[1753175073184,2.2438098,118280.0,118260.0,0.04987805]
[1753175073185,0.2849721,118270.0,118260.0,0.00013805]
[1753175073385,0.92857414,118270.0,118260.0,0.00013805]
[1753175073580,0.6457721,118270.0,118260.0,0.00013805]
[1753175073786,0.92857414,118270.0,118260.0,0.00013805]
[1753175075683,0.92857414,118270.0,118260.0,0.04987805]
[1753175075990,0.92857414,118270.0,118260.0,0.05187805]
[1753175076180,0.92857414,118270.0,118260.0,0.00213805]
[1753175077087,0.92857414,118270.0,118260.0,0.00413805]
[1753175077583,0.92857414,118270.0,118260.0,0.07253805]
[1753175077890,0.86129414,118270.0,118260.0,0.43274659]
[1753175078090,1.1707221,118270.0,118260.0,0.43274659]
[1753175078291,1.03008166,118280.0,118270.0,0.2594621]
[1753175078492,1.60970166,118280.0,118270.0,0.3985121]
[1753175078690,1.60966166,118280.0,118270.0,0.3985121]
[1753175080195,1.60966166,118280.0,118270.0,0.4005121]
[1753175080503,1.32685962,118280.0,118270.0,0.4005121]
[1753175080692,1.60966166,118280.0,118270.0,0.4005121]
[1753175080892,1.32685962,118280.0,118270.0,0.4005121]
[1753175081197,1.60966166,118280.0,118270.0,0.4005121]
[1753175081496,1.67478166,118280.0,118270.0,0.4005121]
[1753175083401,1.39197962,118280.0,118270.0,0.4005121]
[1753175083695,1.67478166,118280.0,118270.0,0.42316344]
[1753175084300,1.31398166,118280.0,118270.0,0.42316344]
[1753175085399,1.31398166,118280.0,118270.0,0.45324558]
[1753175085600,0.71794166,118280.0,118270.0,0.45324558]
[1753175086095,1.31526166,118280.0,118270.0,0.45324498]
[1753175087899,0.72010166,118280.0,118270.0,0.45324498]
[1753175088104,1.31310166,118280.0,118270.0,0.45324498]
[1753175088399,1.31306166,118280.0,118270.0,0.45324498]
[1753175088804,0.71794166,118280.0,118270.0,0.45324498]
[1753175089102,1.31298166,118280.0,118270.0,0.45324498]
[1753175089502,1.31298166,118280.0,118270.0,0.43059364]
[1753175089900,1.31514166,118280.0,118270.0,0.43059364]
[1753175090099,1.31534166,118280.0,118270.0,0.43079364]
[1753175090698,1.03253962,118280.0,118270.0,0.43079364]
[1753175091002,1.31534166,118280.0,118270.0,0.43079364]
[1753175091903,1.31318166,118280.0,118270.0,0.43079364]
[1753175092199,0.11667812,118280.0,118270.0,0.80079364]
[1753175092498,0.59544,118280.0,118270.0,1.44439568]
[1753175093103,0.59544,118280.0,118270.0,1.45943675]
[1753175093903,0.59544,118280.0,118270.0,1.46806968]